[Event "Early-Titled-Tuesday-Blitz-May-28-2024"]
[Site "Chess.com"]
[Date "2024.05.28"]
[Round "1"]
[White "komogro"]
[Black "artin10862"]
[Result "0-1"]
[WhiteElo "2546"]
[BlackElo "3102"]
[TimeControl "180+1"]
[EndTime "8:09:33 PDT"]
[Termination "artin10862 won by checkmate"]

1. Nf3 {[%clk 0:02:59]} 1... Nf6 {[%clk 0:02:56.1]} 2. g3 {[%clk 0:02:59.4]}
2... d5 {[%clk 0:02:50.4]} 3. Bg2 {[%clk 0:03:00.3]} 3... Bg4 {[%clk 0:02:50.5]}
4. c4 {[%clk 0:03:00.6]} 4... c6 {[%clk 0:02:48.2]} 5. Ne5 {[%clk 0:02:56]} 5...
Be6 {[%clk 0:02:45.8]} 6. Qb3 {[%clk 0:02:37.5]} 6... Nbd7 {[%clk 0:02:41.6]} 7.
Nxd7 {[%clk 0:02:26]} 7... Qxd7 {[%clk 0:02:42.5]} 8. d3 {[%clk 0:02:22.7]} 8...
g6 {[%clk 0:02:24]} 9. O-O {[%clk 0:02:22.9]} 9... Bg7 {[%clk 0:02:24]} 10. Nc3
{[%clk 0:02:23.2]} 10... dxc4 {[%clk 0:02:14]} 11. dxc4 {[%clk 0:02:23]} 11...
O-O {[%clk 0:02:14.7]} 12. Rd1 {[%clk 0:02:21.9]} 12... Qc8 {[%clk 0:02:13.2]}
13. Bg5 {[%clk 0:02:16.7]} 13... b5 {[%clk 0:02:10.7]} 14. Qa3 {[%clk
0:02:10.3]} 14... Bxc4 {[%clk 0:02:06.7]} 15. Qxe7 {[%clk 0:02:09.5]} 15... Re8
{[%clk 0:02:07.4]} 16. Qc5 {[%clk 0:02:07.3]} 16... h6 {[%clk 0:01:58.4]} 17.
Bxf6 {[%clk 0:02:02]} 17... Bxf6 {[%clk 0:01:58.4]} 18. Qxc6 {[%clk 0:02:02.8]}
18... Bxc3 {[%clk 0:01:40.7]} 19. bxc3 {[%clk 0:01:57.1]} 19... Qf5 {[%clk
0:01:39.3]} 20. e4 {[%clk 0:01:50.3]} 20... Qe5 {[%clk 0:01:38.8]} 21. Rd4
{[%clk 0:01:47.5]} 21... Rac8 {[%clk 0:01:36.8]} 22. Qb7 {[%clk 0:01:42.8]}
22... Rc7 {[%clk 0:01:31.5]} 23. Qa6 {[%clk 0:01:38.3]} 23... b4 {[%clk
0:00:50.7]} 24. Rxc4 {[%clk 0:00:42]} 24... Re6 {[%clk 0:00:50.4]} 25. Qxe6
{[%clk 0:00:42.3]} 25... fxe6 {[%clk 0:00:48.6]} 26. Rxc7 {[%clk 0:00:42.3]}
26... Qxc7 {[%clk 0:00:48.4]} 27. cxb4 {[%clk 0:00:42.3]} 27... Qc3 {[%clk
0:00:40.9]} 28. Rb1 {[%clk 0:00:35]} 28... Qc2 {[%clk 0:00:39.8]} 29. Re1 {[%clk
0:00:29.3]} 29... Qxa2 {[%clk 0:00:35.5]} 30. b5 {[%clk 0:00:29.5]} 30... Qd2
{[%clk 0:00:22.8]} 31. Ra1 {[%clk 0:00:26.5]} 31... Qd4 {[%clk 0:00:21.3]} 32.
Ra6 {[%clk 0:00:21]} 32... Kf7 {[%clk 0:00:21.4]} 33. h4 {[%clk 0:00:18.3]}
33... e5 {[%clk 0:00:20]} 34. Bf3 {[%clk 0:00:16.6]} 34... Qc5 {[%clk
0:00:19.1]} 35. Kg2 {[%clk 0:00:15.6]} 35... Kg7 {[%clk 0:00:18.5]} 36. h5
{[%clk 0:00:15.2]} 36... gxh5 {[%clk 0:00:17.5]} 37. Bxh5 {[%clk 0:00:14.4]}
37... Qd4 {[%clk 0:00:16.8]} 38. Bf3 {[%clk 0:00:14.5]} 38... Kh7 {[%clk
0:00:15.5]} 39. Re6 {[%clk 0:00:14]} 39... Qc5 {[%clk 0:00:14.7]} 40. Rc6 {[%clk
0:00:13.8]} 40... Qe7 {[%clk 0:00:13]} 41. Bg4 {[%clk 0:00:13.2]} 41... Qb4
{[%clk 0:00:12.8]} 42. Bf5+ {[%clk 0:00:13.6]} 42... Kg8 {[%clk 0:00:12.6]} 43.
Rc8+ {[%clk 0:00:13.9]} 43... Kg7 {[%clk 0:00:12.8]} 44. Rc7+ {[%clk 0:00:14.8]}
44... Kf8 {[%clk 0:00:11.1]} 45. Rxa7 {[%clk 0:00:14.4]} 45... Qxb5 {[%clk
0:00:11.7]} 46. Rh7 {[%clk 0:00:14]} 46... Qb6 {[%clk 0:00:11.9]} 47. Rh8+
{[%clk 0:00:14]} 47... Kg7 {[%clk 0:00:12.3]} 48. Re8 {[%clk 0:00:13.9]} 48...
Qd6 {[%clk 0:00:11.9]} 49. Re6 {[%clk 0:00:13.9]} 49... Qd4 {[%clk 0:00:11.8]}
50. Rg6+ {[%clk 0:00:14.2]} 50... Kf7 {[%clk 0:00:12.3]} 51. Rxh6 {[%clk
0:00:14.6]} 51... Qc3 {[%clk 0:00:13]} 52. Rh7+ {[%clk 0:00:14.5]} 52... Kf6
{[%clk 0:00:13.3]} 53. Rh6+ {[%clk 0:00:15.4]} 53... Kf7 {[%clk 0:00:13.3]} 54.
Re6 {[%clk 0:00:16.3]} 54... Kg7 {[%clk 0:00:13.5]} 55. Rd6 {[%clk 0:00:16.1]}
55... Kf7 {[%clk 0:00:13.5]} 56. Rd7+ {[%clk 0:00:16.4]} 56... Kf6 {[%clk
0:00:13.8]} 57. Rd6+ {[%clk 0:00:16.6]} 57... Kf7 {[%clk 0:00:14.3]} 58. g4
{[%clk 0:00:16.8]} 58... Qc1 {[%clk 0:00:13.6]} 59. Rd5 {[%clk 0:00:16.1]} 59...
Qf4 {[%clk 0:00:13.2]} 60. Rd7+ {[%clk 0:00:16.4]} 60... Kf6 {[%clk 0:00:12.8]}
61. Rd6+ {[%clk 0:00:15.7]} 61... Ke7 {[%clk 0:00:13.3]} 62. Rg6 {[%clk
0:00:15.1]} 62... Kf7 {[%clk 0:00:13.3]} 63. Ra6 {[%clk 0:00:12.8]} 63... Ke7
{[%clk 0:00:12.6]} 64. Ra7+ {[%clk 0:00:12.8]} 64... Kf6 {[%clk 0:00:12.4]} 65.
Ra6+ {[%clk 0:00:12.5]} 65... Kf7 {[%clk 0:00:12.8]} 66. Ra7+ {[%clk 0:00:12.6]}
66... Kf6 {[%clk 0:00:13]} 67. Ra6+ {[%clk 0:00:12.9]} 67... Ke7 {[%clk
0:00:13.3]} 68. Ra7+ {[%clk 0:00:13.4]} 68... Kd6 {[%clk 0:00:13.6]} 69. Ra6+
{[%clk 0:00:13.5]} 69... Kc5 {[%clk 0:00:14.1]} 70. Rg6 {[%clk 0:00:10.4]} 70...
Kd4 {[%clk 0:00:14]} 71. Rg8 {[%clk 0:00:08.8]} 71... Kd3 {[%clk 0:00:14.1]} 72.
Ra8 {[%clk 0:00:09]} 72... Qc1 {[%clk 0:00:12.3]} 73. Rb8 {[%clk 0:00:03.9]}
73... Ke2 {[%clk 0:00:12.8]} 74. Rb7 {[%clk 0:00:02.1]} 74... Qf1+ {[%clk
0:00:12.2]} 75. Kg3 {[%clk 0:00:02.5]} 75... Qxf2+ {[%clk 0:00:10.9]} 76. Kh3
{[%clk 0:00:03.4]} 76... Qe3+ {[%clk 0:00:08.2]} 77. Kh4 {[%clk 0:00:03.5]}
77... Qh6+ {[%clk 0:00:08.9]} 78. Kg3 {[%clk 0:00:03.9]} 78... Qf4+ {[%clk
0:00:08.9]} 79. Kh4 {[%clk 0:00:04.5]} 79... Kf3 {[%clk 0:00:08]} 80. Rb3+
{[%clk 0:00:04.1]} 80... Kg2 {[%clk 0:00:08.5]} 81. Rb2+ {[%clk 0:00:04.4]}
81... Kg1 {[%clk 0:00:07.9]} 82. Rb1+ {[%clk 0:00:04.6]} 82... Kf2 {[%clk
0:00:08.4]} 83. Rb2+ {[%clk 0:00:05.2]} 83... Ke3 {[%clk 0:00:09.1]} 84. Rb3+
{[%clk 0:00:05.5]} 84... Kd4 {[%clk 0:00:09.6]} 85. Rg3 {[%clk 0:00:05.5]} 85...
Qh6# {[%clk 0:00:09.5]} 0-1

[Event "Early-Titled-Tuesday-Blitz-May-28-2024"]
[Site "Chess.com"]
[Date "2024.05.28"]
[Round "1"]
[White "FontVella8"]
[Black "MaiqMaster"]
[Result "0-1"]
[WhiteElo "2744"]
[BlackElo "2445"]
[TimeControl "180+1"]
[EndTime "8:09:34 PDT"]
[Termination "MaiqMaster won by resignation"]

1. e4 {[%clk 0:02:58]} 1... c5 {[%clk 0:02:58.1]} 2. Nf3 {[%clk 0:02:57.8]} 2...
e6 {[%clk 0:02:56.6]} 3. d4 {[%clk 0:02:58.3]} 3... cxd4 {[%clk 0:02:56.7]} 4.
Nxd4 {[%clk 0:02:59.2]} 4... Nc6 {[%clk 0:02:56.1]} 5. Nc3 {[%clk 0:02:59.1]}
5... Qc7 {[%clk 0:02:55.5]} 6. Be3 {[%clk 0:02:51.6]} 6... a6 {[%clk 0:02:55.4]}
7. a3 {[%clk 0:02:51.2]} 7... b5 {[%clk 0:02:54.6]} 8. Nxc6 {[%clk 0:02:48.9]}
8... Qxc6 {[%clk 0:02:55.5]} 9. Be2 {[%clk 0:02:45.3]} 9... Bb7 {[%clk
0:02:52.7]} 10. O-O {[%clk 0:02:44.7]} 10... Qc7 {[%clk 0:02:45.3]} 11. Qd3
{[%clk 0:02:35.9]} 11... Nf6 {[%clk 0:02:43]} 12. Rfd1 {[%clk 0:02:28.6]} 12...
b4 {[%clk 0:02:35.2]} 13. axb4 {[%clk 0:02:22.1]} 13... Bxb4 {[%clk 0:02:36.1]}
14. Bf3 {[%clk 0:02:19.7]} 14... O-O {[%clk 0:02:32.5]} 15. Ra4 {[%clk
0:01:36.7]} 15... a5 {[%clk 0:02:06.7]} 16. Nb5 {[%clk 0:01:20]} 16... Qe5
{[%clk 0:02:06.6]} 17. Bd4 {[%clk 0:01:14.8]} 17... Qg5 {[%clk 0:02:03.6]} 18.
e5 {[%clk 0:01:06.4]} 18... Nd5 {[%clk 0:01:41]} 19. c3 {[%clk 0:00:52.5]} 19...
Nf4 {[%clk 0:01:28.3]} 20. Qe3 {[%clk 0:00:52]} 20... Bxf3 {[%clk 0:01:25.3]}
21. Qxf3 {[%clk 0:00:50.5]} 21... Be7 {[%clk 0:01:21.5]} 22. g3 {[%clk
0:00:24.3]} 22... Nd5 {[%clk 0:01:19.1]} 23. h4 {[%clk 0:00:22]} 23... Qg6
{[%clk 0:01:18.3]} 24. c4 {[%clk 0:00:15.5]} 24... Nb4 {[%clk 0:01:14.7]} 25.
Be3 {[%clk 0:00:13]} 25... Qc2 {[%clk 0:00:58.8]} 26. Raa1 {[%clk 0:00:13.2]}
26... Qxc4 {[%clk 0:00:56.5]} 27. Rxd7 {[%clk 0:00:08.7]} 27... Qxb5 {[%clk
0:00:47]} 28. Rxe7 {[%clk 0:00:08.7]} 28... Nd5 {[%clk 0:00:47]} 29. Ra7 {[%clk
0:00:06]} 29... Rxa7 {[%clk 0:00:38.2]} 30. Bxa7 {[%clk 0:00:05.7]} 30... Ra8
{[%clk 0:00:38.7]} 31. Be3 {[%clk 0:00:02.7]} 31... Qxb2 {[%clk 0:00:38.5]} 32.
Qd1 {[%clk 0:00:02.8]} 32... Qxe5 {[%clk 0:00:34.4]} 33. Bd4 {[%clk 0:00:02.1]}
33... Qc7 {[%clk 0:00:26.1]} 34. Qb3 {[%clk 0:00:02]} 34... Qc6 {[%clk
0:00:24.7]} 35. Rxa5 {[%clk 0:00:01.3]} 35... Rc8 {[%clk 0:00:19.6]} 36. Rc5
{[%clk 0:00:01.9]} 36... Qd7 {[%clk 0:00:19]} 37. Qb5 {[%clk 0:00:02.1]} 37...
Qe8 {[%clk 0:00:14.2]} 38. Rxc8 {[%clk 0:00:01.6]} 38... Qxc8 {[%clk 0:00:15.1]}
39. Be5 {[%clk 0:00:01.7]} 39... h6 {[%clk 0:00:14.8]} 40. Bd4 {[%clk
0:00:01.8]} 40... Qc1+ {[%clk 0:00:14.8]} 41. Qf1 {[%clk 0:00:02.1]} 41... Qxf1+
{[%clk 0:00:14.7]} 42. Kxf1 {[%clk 0:00:03]} 42... f5 {[%clk 0:00:15.3]} 43. Ke2
{[%clk 0:00:03.5]} 43... g5 {[%clk 0:00:15.7]} 44. hxg5 {[%clk 0:00:03.1]} 44...
hxg5 {[%clk 0:00:16.6]} 45. Be5 {[%clk 0:00:03.7]} 45... g4 {[%clk 0:00:17]} 46.
Kd3 {[%clk 0:00:03.8]} 46... Kf7 {[%clk 0:00:17.3]} 47. Kd4 {[%clk 0:00:03.9]}
47... Ke7 {[%clk 0:00:18]} 48. Kc5 {[%clk 0:00:03.7]} 48... Kd7 {[%clk
0:00:18.5]} 49. Bd4 {[%clk 0:00:03.1]} 49... Ne7 {[%clk 0:00:18.5]} 50. Be5
{[%clk 0:00:02.9]} 50... Ng6 {[%clk 0:00:17.6]} 51. Bb8 {[%clk 0:00:03]} 51...
Ne7 {[%clk 0:00:17.4]} 52. Be5 {[%clk 0:00:02.7]} 52... Nd5 {[%clk 0:00:17.6]}
53. Bd4 {[%clk 0:00:02.6]} 53... Nc7 {[%clk 0:00:17.7]} 54. Be5 {[%clk
0:00:02.6]} 54... Ne8 {[%clk 0:00:16.1]} 55. Kb5 {[%clk 0:00:01.3]} 55... Nd6+
{[%clk 0:00:15.9]} 56. Kc5 {[%clk 0:00:01.6]} 56... Ne4+ {[%clk 0:00:16.3]} 57.
Kd4 {[%clk 0:00:02.1]} 57... Nxf2 {[%clk 0:00:16.8]} 58. Bf4 {[%clk 0:00:02.2]}
58... Ne4 {[%clk 0:00:16.9]} 59. Be5 {[%clk 0:00:02.5]} 59... Kc6 {[%clk
0:00:17.2]} 60. Bf4 {[%clk 0:00:02.9]} 60... Nd6 {[%clk 0:00:13.9]} 61. Ke5
{[%clk 0:00:03.3]} 61... Kd7 {[%clk 0:00:14.2]} 62. Kd4 {[%clk 0:00:03.2]} 62...
Nf7 {[%clk 0:00:13.8]} 63. Kc5 {[%clk 0:00:03.1]} 63... e5 {[%clk 0:00:14]} 64.
Bd2 {[%clk 0:00:03.4]} 64... Ke6 {[%clk 0:00:14.6]} 65. Kc4 {[%clk 0:00:03.6]}
65... Nd6+ {[%clk 0:00:15]} 66. Kd3 {[%clk 0:00:03.7]} 66... Ne4 {[%clk
0:00:15.9]} 67. Be1 {[%clk 0:00:03.5]} 67... Kd5 {[%clk 0:00:15.9]} 68. Ke3
{[%clk 0:00:04]} 68... Nc5 {[%clk 0:00:15.4]} 69. Bb4 {[%clk 0:00:03.7]} 69...
Nb7 {[%clk 0:00:14.5]} 70. Ba3 {[%clk 0:00:03.5]} 70... Nd6 {[%clk 0:00:15.1]}
71. Bb4 {[%clk 0:00:03.2]} 71... Nc4+ {[%clk 0:00:15.1]} 72. Kd3 {[%clk
0:00:03.4]} 72... e4+ {[%clk 0:00:15]} 73. Ke2 {[%clk 0:00:04]} 73... Ne5 {[%clk
0:00:12.7]} 74. Bd2 {[%clk 0:00:03.4]} 74... Nd3 {[%clk 0:00:11.8]} 75. Bh6
{[%clk 0:00:03.6]} 75... Kd4 {[%clk 0:00:12]} 76. Bg7+ {[%clk 0:00:03.9]} 76...
Ne5 {[%clk 0:00:11.3]} 77. Bh6 {[%clk 0:00:03.9]} 77... Nf3 {[%clk 0:00:10.6]}
78. Bg7+ {[%clk 0:00:04.3]} 78... Kd5 {[%clk 0:00:10.1]} 79. Ke3 {[%clk
0:00:04.5]} 79... Ke6 {[%clk 0:00:06.3]} 80. Bc3 {[%clk 0:00:04]} 80... Ne5
{[%clk 0:00:06.3]} 81. Kf4 {[%clk 0:00:04.1]} 81... Nc4 {[%clk 0:00:06.6]} 82.
Bb4 {[%clk 0:00:03.6]} 82... Nd6 {[%clk 0:00:06.8]} 83. Bc3 {[%clk 0:00:03.5]}
83... Nf7 {[%clk 0:00:07]} 84. Ke3 {[%clk 0:00:03.8]} 84... Kd5 {[%clk 0:00:06]}
85. Bf6 {[%clk 0:00:03.8]} 85... Kc4 {[%clk 0:00:06.1]} 86. Kf4 {[%clk
0:00:03.8]} 86... Kd3 {[%clk 0:00:06]} 87. Be7 {[%clk 0:00:01.4]} 87... e3
{[%clk 0:00:05.1]} 88. Kxf5 {[%clk 0:00:01.7]} 88... Nh6+ {[%clk 0:00:04.8]} 89.
Kg5 {[%clk 0:00:01.7]} 89... e2 {[%clk 0:00:05.3]} 90. Bb4 {[%clk 0:00:01.5]}
90... Ke3 {[%clk 0:00:05.5]} 91. Kh4 {[%clk 0:00:01]} 91... Kf2 {[%clk
0:00:05.8]} 92. Kg5 {[%clk 0:00:01.5]} 92... Kxg3 {[%clk 0:00:05.7]} 93. Kxh6
{[%clk 0:00:02.1]} 93... Kf3 {[%clk 0:00:06.5]} 94. Kg5 {[%clk 0:00:02.6]} 94...
g3 {[%clk 0:00:06.9]} 95. Bc5 {[%clk 0:00:01.2]} 95... g2 {[%clk 0:00:07.8]} 96.
Bg1 {[%clk 0:00:01.1]} 96... e1=Q {[%clk 0:00:07.9]} 0-1

[Event "Early-Titled-Tuesday-Blitz-May-28-2024"]
[Site "Chess.com"]
[Date "2024.05.28"]
[Round "1"]
[White "tusplingher"]
[Black "Irina_Mikhaylova"]
[Result "0-1"]
[WhiteElo "2608"]
[BlackElo "2331"]
[TimeControl "180+1"]
[EndTime "8:09:42 PDT"]
[Termination "Irina_Mikhaylova won by resignation"]

1. c4 {[%clk 0:03:00]} 1... g6 {[%clk 0:02:59.5]} 2. g3 {[%clk 0:02:58.6]} 2...
Bg7 {[%clk 0:02:55.3]} 3. Bg2 {[%clk 0:02:58.5]} 3... c5 {[%clk 0:02:55.7]} 4.
Nc3 {[%clk 0:02:57.9]} 4... Nc6 {[%clk 0:02:55.6]} 5. Nf3 {[%clk 0:02:57.5]}
5... e6 {[%clk 0:02:56]} 6. O-O {[%clk 0:02:56.8]} 6... Nge7 {[%clk 0:02:56]} 7.
d4 {[%clk 0:02:55.7]} 7... Nxd4 {[%clk 0:02:43.3]} 8. Nxd4 {[%clk 0:02:54.1]}
8... cxd4 {[%clk 0:02:44.2]} 9. Nb5 {[%clk 0:02:53.9]} 9... O-O {[%clk
0:02:43.8]} 10. Nxd4 {[%clk 0:02:53.7]} 10... d5 {[%clk 0:02:44.3]} 11. cxd5
{[%clk 0:02:51.3]} 11... Nxd5 {[%clk 0:02:45.2]} 12. Nb3 {[%clk 0:02:50.4]}
12... Qb6 {[%clk 0:02:19.7]} 13. Bxd5 {[%clk 0:02:43.1]} 13... exd5 {[%clk
0:02:20.6]} 14. Be3 {[%clk 0:02:41.3]} 14... Qd8 {[%clk 0:02:00.8]} 15. Bd4
{[%clk 0:02:38.6]} 15... f6 {[%clk 0:01:50.6]} 16. Rc1 {[%clk 0:02:35.3]} 16...
b6 {[%clk 0:01:48.4]} 17. Qd2 {[%clk 0:02:27.7]} 17... Be6 {[%clk 0:01:46.6]}
18. Rc3 {[%clk 0:02:20]} 18... Rc8 {[%clk 0:01:46.4]} 19. Rfc1 {[%clk
0:02:19.2]} 19... Qd7 {[%clk 0:01:45.8]} 20. Rxc8 {[%clk 0:02:00.5]} 20... Rxc8
{[%clk 0:01:45.3]} 21. Rxc8+ {[%clk 0:02:00.4]} 21... Qxc8 {[%clk 0:01:45.8]}
22. Qc3 {[%clk 0:01:59.5]} 22... Qxc3 {[%clk 0:01:41.1]} 23. Bxc3 {[%clk
0:01:59.3]} 23... Kf7 {[%clk 0:01:41.6]} 24. Kf1 {[%clk 0:01:57.2]} 24... Bd7
{[%clk 0:01:32.8]} 25. Bd4 {[%clk 0:01:53.3]} 25... Bf8 {[%clk 0:01:29.5]} 26.
Ke1 {[%clk 0:01:50.5]} 26... Bb4+ {[%clk 0:01:27.7]} 27. Bc3 {[%clk 0:01:48.3]}
27... Bd6 {[%clk 0:01:24.7]} 28. Kd2 {[%clk 0:01:46.2]} 28... Ba4 {[%clk
0:01:23]} 29. Nd4 {[%clk 0:01:45.7]} 29... Be5 {[%clk 0:01:20.9]} 30. Nf3 {[%clk
0:01:38.3]} 30... Bd6 {[%clk 0:01:20.9]} 31. b3 {[%clk 0:01:35.9]} 31... Bb5
{[%clk 0:01:18.1]} 32. Nd4 {[%clk 0:01:35.7]} 32... Bd7 {[%clk 0:01:18.1]} 33.
Kd3 {[%clk 0:01:31]} 33... Be5 {[%clk 0:01:18.4]} 34. Nf3 {[%clk 0:01:26.7]}
34... Bb5+ {[%clk 0:01:18.2]} 35. Kd2 {[%clk 0:01:20.5]} 35... Bd6 {[%clk
0:01:18.3]} 36. a4 {[%clk 0:01:11.5]} 36... Bd7 {[%clk 0:01:18.2]} 37. a5 {[%clk
0:01:01.8]} 37... Bc5 {[%clk 0:00:58.6]} 38. axb6 {[%clk 0:00:57.9]} 38... axb6
{[%clk 0:00:57]} 39. Bd4 {[%clk 0:00:58]} 39... Bg4 {[%clk 0:00:54.8]} 40. Bxc5
{[%clk 0:00:55.8]} 40... bxc5 {[%clk 0:00:55.7]} 41. Ne1 {[%clk 0:00:55.4]}
41... Bf5 {[%clk 0:00:54.5]} 42. Ng2 {[%clk 0:00:51.3]} 42... g5 {[%clk
0:00:51.2]} 43. Ne3 {[%clk 0:00:51]} 43... Be6 {[%clk 0:00:51.6]} 44. Nd1 {[%clk
0:00:47.8]} 44... d4 {[%clk 0:00:47.9]} 45. Kc2 {[%clk 0:00:48]} 45... Bf5+
{[%clk 0:00:44.4]} 46. Kc1 {[%clk 0:00:45.5]} 46... Be6 {[%clk 0:00:44.3]} 47.
Kb2 {[%clk 0:00:45]} 47... Ke7 {[%clk 0:00:44.8]} 48. Ka3 {[%clk 0:00:39.7]}
48... Bd7 {[%clk 0:00:42.5]} 49. Nb2 {[%clk 0:00:39.5]} 49... Bb5 {[%clk
0:00:40.4]} 50. e3 {[%clk 0:00:37.5]} 50... Kd6 {[%clk 0:00:38.8]} 51. exd4
{[%clk 0:00:32.2]} 51... cxd4 {[%clk 0:00:39.7]} 52. Kb4 {[%clk 0:00:32.2]}
52... Bf1 {[%clk 0:00:39.1]} 53. Nc4+ {[%clk 0:00:26.9]} 53... Kd5 {[%clk
0:00:39.4]} 54. Nd2 {[%clk 0:00:27.1]} 54... Be2 {[%clk 0:00:31.6]} 55. Ka5
{[%clk 0:00:26]} 55... d3 {[%clk 0:00:32.1]} 56. b4 {[%clk 0:00:22.4]} 56... Kd4
{[%clk 0:00:31]} 57. b5 {[%clk 0:00:23]} 57... Kc3 {[%clk 0:00:31.5]} 58. b6
{[%clk 0:00:23.6]} 58... Kxd2 {[%clk 0:00:30.7]} 59. b7 {[%clk 0:00:24.2]} 59...
Ke1 {[%clk 0:00:31.6]} 60. b8=Q {[%clk 0:00:24.5]} 60... d2 {[%clk 0:00:31.9]}
61. Qb4 {[%clk 0:00:24.8]} 61... Bd3 {[%clk 0:00:29.7]} 62. Qc3 {[%clk 0:00:21]}
62... Ke2 {[%clk 0:00:29.3]} 63. Qb2 {[%clk 0:00:21.1]} 63... Ke1 {[%clk
0:00:28.6]} 64. Qb4 {[%clk 0:00:16.2]} 64... Ke2 {[%clk 0:00:27.3]} 65. Qe7+
{[%clk 0:00:14]} 65... Kf1 {[%clk 0:00:27]} 66. Qxf6 {[%clk 0:00:10.3]} 66...
d1=Q {[%clk 0:00:26.1]} 67. Qxg5 {[%clk 0:00:10.2]} 67... Qb1 {[%clk 0:00:24.2]}
68. Qc5 {[%clk 0:00:08.3]} 68... Qa1+ {[%clk 0:00:22.4]} 69. Kb6 {[%clk
0:00:08.1]} 69... Qf6+ {[%clk 0:00:21]} 70. Kc7 {[%clk 0:00:07.7]} 70... Qf7+
{[%clk 0:00:20.4]} 71. Kd8 {[%clk 0:00:08.2]} 71... Qg8+ {[%clk 0:00:20]} 72.
Kc7 {[%clk 0:00:08]} 72... Qf7+ {[%clk 0:00:20.2]} 73. Kd8 {[%clk 0:00:08.3]}
73... Bf5 {[%clk 0:00:17.7]} 74. Qd4 {[%clk 0:00:04.5]} 74... Kg2 {[%clk
0:00:17.1]} 75. f4 {[%clk 0:00:04.4]} 75... Kxh2 {[%clk 0:00:16.3]} 76. Qd2+
{[%clk 0:00:02.7]} 76... Kxg3 {[%clk 0:00:15.7]} 77. Qe3+ {[%clk 0:00:03.1]}
77... Kh4 {[%clk 0:00:14.5]} 78. Qf2+ {[%clk 0:00:03.1]} 78... Kg4 {[%clk
0:00:14.2]} 79. Qe2+ {[%clk 0:00:03.3]} 79... Kxf4 {[%clk 0:00:14.6]} 80. Qf2+
{[%clk 0:00:03.8]} 80... Kg5 {[%clk 0:00:14.5]} 81. Qg3+ {[%clk 0:00:04.2]}
81... Kf6 {[%clk 0:00:14.8]} 82. Qc3+ {[%clk 0:00:04.5]} 82... Kg6 {[%clk
0:00:14.8]} 83. Qg3+ {[%clk 0:00:04.6]} 83... Kh6 {[%clk 0:00:13.9]} 84. Qh4+
{[%clk 0:00:03.9]} 84... Kg7 {[%clk 0:00:14.1]} 85. Qg3+ {[%clk 0:00:03.6]}
85... Kh8 {[%clk 0:00:11.7]} 86. Qe5+ {[%clk 0:00:02.6]} 86... Kg8 {[%clk
0:00:11.9]} 87. Qg3+ {[%clk 0:00:02.5]} 87... Bg6 {[%clk 0:00:11.8]} 88. Qg1
{[%clk 0:00:01.5]} 88... Kg7 {[%clk 0:00:10.4]} 89. Qa1+ {[%clk 0:00:01]} 89...
Qf6+ {[%clk 0:00:10.8]} 90. Qxf6+ {[%clk 0:00:01.3]} 90... Kxf6 {[%clk
0:00:11.7]} 91. Kd7 {[%clk 0:00:01.9]} 91... h5 {[%clk 0:00:12.2]} 92. Kd6
{[%clk 0:00:02.8]} 92... Kf5 {[%clk 0:00:12.6]} 93. Kd5 {[%clk 0:00:03.7]} 93...
Kf4 {[%clk 0:00:13.5]} 94. Kd4 {[%clk 0:00:04.4]} 94... Kf3 {[%clk 0:00:14.4]}
95. Ke5 {[%clk 0:00:04.6]} 95... Kf2 {[%clk 0:00:15.3]} 96. Kf6 {[%clk
0:00:05.4]} 96... h4 {[%clk 0:00:15.8]} 97. Kg5 {[%clk 0:00:06.1]} 97... h3
{[%clk 0:00:16.7]} 98. Kg4 {[%clk 0:00:06.8]} 98... h2 {[%clk 0:00:17.2]} 99.
Kh3 {[%clk 0:00:07.7]} 99... h1=Q+ {[%clk 0:00:18.1]} 0-1